fUST/lending_fUST_20240628
["ID","MTS","AMOUNT","RATE_DAILY","PERIOD"]
[330581042,1719584823804,-500.0,0.00048767,120]
[330581043,1719584823850,-1058587.55467004,0.000488,90]
[330581044,1719584831805,-441412.44532996,0.000488,90]
[330581045,1719584831846,-1970.30965796,0.0004888,120]
[330581046,1719584831884,-151.0,0.00049205,120]
[330581047,1719584831924,-500.0,0.00049315,120]
[330581048,1719584831964,-1122.87,0.00049315,120]
[330581049,1719584836801,154.83742071,9.999e-05,2]
[330581050,1719584837122,-673.75482729,0.00014605,2]
[330581051,1719584848654,1075.04,0.00035616,120]
[330581052,1719584848912,1075.04,0.00035616,120]
[330581053,1719584849203,1075.04,0.00035616,120]
[330581054,1719584849489,1075.04,0.00035616,120]
[330581055,1719584851805,154.83742071,9.999e-05,2]
[330581056,1719584892830,-1075.04,0.00035616,120]
[330581057,1719584892871,-1075.04,0.00035616,120]
[330581058,1719584892910,-1075.04,0.00035616,120]
[330581059,1719584892948,-1075.04,0.00035616,120]
[330581060,1719584892986,-1075.04,0.00035616,120]
[330581061,1719584893024,-1075.04,0.00035616,120]
[330581062,1719584893065,-1075.04,0.00035616,120]
[330581063,1719584893105,-1075.04,0.00035616,120]
[330581064,1719584893145,-1075.04,0.00035616,120]
[330581065,1719584893187,-1075.04,0.00035616,120]
[330581066,1719584893223,-1075.04,0.00035616,120]
[330581067,1719584893264,-1075.04,0.00035616,120]
[330581068,1719584893304,-1075.04,0.00035616,120]
[330581069,1719584893348,-1075.04,0.00035616,120]
[330581070,1719584893393,-1075.04,0.00035616,120]
[330581071,1719584893438,-1075.04,0.00035616,120]
[330581072,1719584893485,-1075.04,0.00035616,120]
[330581073,1719584893530,-1075.04,0.00035616,120]
[330581074,1719584893575,-1075.04,0.00035616,120]
[330581075,1719584893618,-1075.13913954,0.00035616,120]
[330581076,1719584893669,-150.00250945,0.00040036,30]
[330581077,1719584893712,-150.19056368,0.00040075,30]
[330581078,1719584893757,-150.00250945,0.00040242,30]
[330581079,1719584893800,-199.14410148,0.00040254,30]
[330581080,1719584893844,-150.00250945,0.00040358,30]
[330581081,1719584893888,-150.00250945,0.00040619,30]
[330581082,1719584893930,-150.00250945,0.00040726,30]
[330581083,1719584893970,-150.00250945,0.00040962,30]
[330581084,1719584894010,-150.19056368,0.00040989,30]
[330581085,1719584894051,-150.19056368,0.00041001,30]
[330581086,1719584894097,-150.00250945,0.00041044,30]
[330581087,1719584894137,-150.19056368,0.00041101,30]
[330581088,1719584894178,-199.14410148,0.00041105,30]
[330581089,1719584894220,-150.19056368,0.00041112,30]
[330581090,1719584894263,-199.14410148,0.00041159,30]
[330581091,1719584894306,-150.00250945,0.00041404,30]
[330581092,1719584894351,-150.19056368,0.00041498,30]
[330581093,1719584894393,-150.19056368,0.00041871,30]
[330581094,1719584894439,-150.00250945,0.00042071,30]
[330581095,1719584894491,-150.19056368,0.00042286,30]
[330581096,1719584894536,-150.19056368,0.00042485,30]
[330581097,1719584894582,-150.00250945,0.00042987,30]
[330581098,1719584894627,-150.19056368,0.00043346,30]
[330581099,1719584894672,-159.58668664,0.00043541,30]
[330581100,1719584894712,-150.19056368,0.00043826,30]
[330581101,1719584894752,-150.19056378,0.00043831,30]
[330581102,1719584894792,-514.63687827,0.00048431,41]
[330581103,1719584894834,-514.63687827,0.00049399,41]
[330581104,1719584894875,-1122.87,0.00049589,120]
[330581105,1719584894916,-119280.84970525,0.00049811,90]
[330581106,1719584894958,-152.33517351,0.00049816,77]
[330581107,1719584895001,-500.0,0.00049863,120]
[330581108,1719584895044,-1122.87,0.00049863,120]
[330581109,1719584895085,-154.83742071,0.0005,30]
[330581110,1719584895124,-1793.18396372,0.0005,120]
[330581111,1719584895164,-500.0,0.0005,120]
[330581112,1719584895203,-500.0,0.0005,120]
[330581113,1719584895243,-100000.0,0.0005,120]
[330581114,1719584895282,-254.58817369,0.0005,120]
[330581115,1719584895324,-942.43410364,0.0005,120]
[330581116,1719584895364,-3026.07283265,0.0005,120]
[330581117,1719584895558,-1921.7602907,0.0005,120]
[330581118,1719584895599,-258.0,0.0005,120]
[330581119,1719584895637,-4303.7090955,0.0005,60]
[330581120,1719584895676,-400.0,0.0005,30]
[330581121,1719584895716,-1122.87,0.00050136,120]
[330581122,1719584895756,-544.90963582,0.00050368,44]
[330581123,1719584895795,-500.0,0.0005041,120]
[330581124,1719584895835,-1122.87,0.0005041,120]
[330581125,1719584895877,-151.0,0.00050521,120]
[330581126,1719584895919,-1122.87,0.00050684,120]
[330581127,1719584895960,-500.0,0.00050958,120]
[330581128,1719584896003,-1122.87,0.00050958,120]
[330581129,1719584896045,-3000.0,0.00051,85]
[330581130,1719584896088,-3000.0,0.0005101,85]
[330581131,1719584896129,-3000.0,0.0005102,85]
[330581132,1719584896169,-3000.0,0.0005103,85]
[330581133,1719584896208,-3000.0,0.0005104,85]
[330581134,1719584896249,-3000.0,0.0005105,85]
[330581135,1719584896290,-3000.0,0.0005106,85]
[330581136,1719584896335,-3000.0,0.0005107,85]
[330581137,1719584896381,-4829.714259,0.0005108,85]
[330581138,1719584896423,-975.60086128,0.00051148,120]
[330581139,1719584896474,-1122.87,0.00051232,120]
[330581140,1719584896514,-575.18239336,0.00051336,47]
[330581141,1719584896553,-1193.02323792,0.000515,120]
[330581142,1719584896593,-500.0,0.00051506,120]
[330581143,1719584896635,-1122.87,0.00051506,120]
[330581144,1719584896676,-1122.87,0.0005178,120]
[330581145,1719584896718,-1500000.0,0.000518,120]
[330581146,1719584896758,-151.0,0.00051836,120]
[330581147,1719584896798,-1207.0,0.0005187,120]
[330581148,1719584896837,-486.77136543,0.00051878,30]
[330581149,1719584896876,-500.0,0.00052,30]
[330581150,1719584896915,-500.0,0.00052,30]
[330581151,1719584896954,-500.0,0.00052,30]
[330581152,1719584896994,-1004.882904,0.00052,30]
[330581153,1719584897032,-43709.2016965,0.00052,30]
[330581154,1719584897076,-276.9,0.00052,60]
[330581155,1719584897119,-152.0,0.00052,60]
[330581156,1719584897162,-772.0,0.00052018,120]
[330581157,1719584897203,-500.0,0.00052054,120]
[330581158,1719584897244,-1122.87,0.00052054,120]
[330581159,1719584897284,-50000.0,0.0005224,120]
[330581160,1719584897330,-575.18239336,0.00052305,47]
[330581161,1719584897372,-1122.87,0.00052328,120]
[330581162,1719584897413,-500.0,0.00052602,120]
[330581163,1719584897456,-1122.87,0.00052602,120]
[330581164,1719584897501,-1122.87,0.00052876,120]
[330581165,1719584897540,-242.48358645,0.0005289,120]
[330581166,1719584897581,-9458.61593647,0.00053132,30]
[330581167,1719584897619,-500.0,0.0005315,120]
[330581168,1719584897658,-1122.87,0.0005315,120]
[330581169,1719584897697,-151.0,0.00053151,120]
[330581170,1719584897736,-605.45515091,0.00053274,50]
[330581171,1719584897774,-219.83313897,0.000533,120]
[330581172,1719584897814,-1122.87,0.00053424,120]
[330581173,1719584898103,199.14410148,0.00041668,30]
[330581174,1719584898199,199.14410148,0.0004188,30]
[330581175,1719584898402,199.14410148,0.00042902,30]
[330581176,1719584898485,199.14410148,0.00043017,30]
[330581177,1719584898680,199.14410163,0.00043358,30]
[330581178,1719584902101,154.83742071,0.0001212,2]
[330581179,1719584908892,371.2546784,0.00041095,30]
[330581180,1719584919260,-5000.0,0.00031285,90]
[330581181,1719584919308,-501.99600002,0.00031285,120]
[330581182,1719584947136,-300.0,0.000142,2]
[330581183,1719584947157,-300.0,0.000142,2]
[330581184,1719584947178,-9871.5184,0.00014201,2]
[330581185,1719584953198,-15028.4816,0.00014201,2]
[330581186,1719584953221,-2326.24517271,0.00014605,2]
[330581187,1719584953242,-254.58225,0.00014626,2]
[330581188,1719584953264,-5772.00211607,0.00014998,2]
[330581189,1719584978634,-662.14752195,0.00014998,2]
[330581190,1719584978678,-662.14752195,0.00014998,2]
[330581191,1719584978748,-519.10868476,0.00014998,2]
[330581192,1719584987350,155.62769865,0.00010959,2]
[330581193,1719584987376,520.10230135,0.00010959,2]
[330581194,1719585003534,-685.6674838,0.00014998,2]
[330581195,1719585003581,-685.6674838,0.00014998,2]
[330581196,1719585003638,-617.26390047,0.00014998,2]
[330581197,1719585003674,-68.40358333,0.00014998,2]
[330581220,1719585032382,-231.59641667,0.00014998,2]
[330581222,1719585032392,-300.0,0.00014998,2]
[330581224,1719585032402,-1757.40911364,0.00014999,2]
[330581226,1719585032411,-775.0589469,0.00014999,2]
[330581296,1719585038541,-2299.81543174,0.00014999,2]
[330581297,1719585038551,-242.31003536,0.00015,2]
[330581298,1719585038563,-420.0,0.00016498,2]
[330581299,1719585038575,-290.0,0.00018148,2]
[330581300,1719585038585,-667.40563611,0.00018179,2]
[330581301,1719585038597,-1424.22633952,0.00018179,2]
[330581302,1719585038607,-117116.33827247,0.000185,2]
[330581303,1719585038617,-2477.63548757,0.000186,2]
[330581304,1719585038627,-2477.63548754,0.0001867,2]
[330581305,1719585038637,-163.07194786,0.000187,2]
[330581306,1719585038647,-2477.63548754,0.00018739,2]
[330581307,1719585038656,-2477.63548754,0.00018809,2]
[330581308,1719585038665,-205.8950775,0.00018877,2]
[330581309,1719585038675,-2477.63548754,0.00018878,2]
[330581310,1719585038684,-151.0,0.000189,2]
[330581311,1719585038694,-1018.125258,0.000189,2]
[330581312,1719585038704,-1018.125258,0.000189,2]
[330581313,1719585038714,-151.0,0.000189,2]
[330581314,1719585038723,-151.0,0.000189,2]
[330581315,1719585038733,-151.0,0.000189,2]
[330581316,1719585038743,-151.0,0.000189,2]
[330581317,1719585038752,-151.0,0.000189,2]
[330581318,1719585038762,-151.0,0.000189,2]
[330581319,1719585038772,-151.0,0.000189,2]
[330581320,1719585038782,-151.0,0.000189,2]
[330581321,1719585038792,-172.242599,0.000189,2]
[330581322,1719585038802,-151.0,0.000189,2]
[330581323,1719585038811,-151.0,0.000189,2]
[330581324,1719585038821,-151.0,0.000189,2]
[330581325,1719585038832,-153.307249,0.000189,2]
[330581326,1719585038841,-151.0,0.000189,2]
[330581327,1719585038851,-188.63851958,0.000189,2]
[330581328,1719585038861,-294.767521,0.000189,2]
[330581329,1719585038872,-294.767521,0.000189,2]
[330581330,1719585038882,-294.767521,0.000189,2]
[330581331,1719585038891,-294.767521,0.000189,2]
[330581332,1719585038901,-1732.920483,0.000189,2]
[330581333,1719585038911,-1732.920483,0.000189,2]
[330581334,1719585038920,-1732.920483,0.000189,2]
[330581335,1719585038929,-1732.920483,0.000189,2]
[330581336,1719585038939,-981.971023,0.000189,2]
[330581337,1719585038949,-981.971023,0.000189,2]
[330581338,1719585038958,-981.971023,0.000189,2]
[330581339,1719585038968,-981.971023,0.000189,2]
[330581340,1719585038978,-21975.13513656,0.000189,2]
[330581341,1719585038990,-2839.37721976,0.000189,2]
[330581385,1719585041394,-43078.17037656,0.000189,2]
[330581386,1719585041406,-20255.08496855,0.000189,2]
[330581551,1719585044271,-876.0004528,0.000189,2]
[330581603,1719585046785,-625.13212042,0.000189,2]
[330581604,1719585046797,-7102.44627288,0.000189,2]
[330581605,1719585046809,-5426.36929353,0.000189,2]
[330581607,1719585151297,918.0,0.00019048,62]
[330581608,1719585151927,918.0,0.00019038,62]
[330581609,1719585152471,918.0,0.00019028,62]
[330581619,1719585228797,949.48422635,9.999e-05,2]
[330581628,1719585266301,791.23685529,0.0001212,2]
[330581630,1719585271980,643.0,0.00019158,62]
[330581631,1719585272536,643.0,0.00019148,62]
[330581632,1719585274187,643.0,0.00019138,62]
[330581926,1719585314301,412.23440161,0.0001212,2]
[330582288,1719585393699,450.0,0.00019158,62]
[330582289,1719585394480,450.0,0.00019148,62]
[330582290,1719585394997,450.0,0.00019138,62]
[330582311,1719585459033,155.4353695,9.999e-05,2]
[330582312,1719585463169,208.78500633,9.999e-05,2]
[330582313,1719585470814,154.94486448,9.999e-05,2]
[330582314,1719585477965,154.85288975,9.999e-05,2]
[330582315,1719585480527,154.92341564,9.999e-05,2]
[330582316,1719585484180,458.82307956,9.999e-05,2]
[330582317,1719585487362,159.71453487,9.999e-05,2]
[330582318,1719585492949,19316.54266155,9.999e-05,2]
[330582319,1719585497652,10562.28786365,0.0001212,2]
[330582320,1719585506823,412.23440161,9.999e-05,2]
[330582321,1719585512273,315.0,0.00018988,62]
[330582322,1719585512527,315.0,0.00018978,62]
[330582323,1719585513001,315.0,0.00018968,62]
[330582324,1719585516651,11856.720118,0.0001393,2]
[330582325,1719585521412,17236.27288962,0.0001212,2]
[330582326,1719585526332,776.11834176,0.0001212,2]
[330582327,1719585535467,154.97314253,0.0001212,2]
[330582328,1719585548048,11124.95236012,0.0001212,2]
[330582349,1719585627415,412.23440161,9.999e-05,2]
[330582352,1719585632840,220.0,0.00018978,62]
[330582353,1719585633322,220.0,0.00018968,62]
[330582354,1719585633874,220.0,0.00018958,62]
[330582355,1719585638917,191.50773602,9.999e-05,2]
[330582356,1719585648703,24900.0,0.0001381,2]
[330582362,1719585663364,155.62769865,9.999e-05,2]
[330582363,1719585668143,199.7558762,0.00013835,2]
[330582364,1719585680691,453.00397169,9.999e-05,2]
[330582373,1719585706802,237.7961625,0.00013909,2]
[330582375,1719585713392,155.08242179,9.999e-05,2]
[330582376,1719585738836,2693.686808,0.00013887,2]
[330582377,1719585752558,154.0,0.00016243,62]
[330582378,1719585753107,154.0,0.00016233,62]
[330582379,1719585753582,154.0,0.00016223,62]
[330582380,1719585768360,38210.029126,0.00013887,2]
[330582381,1719585781970,250.0,0.00013887,2]
[330582382,1719585825788,1682.8648674,0.00013887,2]
[330582383,1719585834683,3107.9512162,0.00013887,2]
[330582384,1719585877670,150.5,0.00016243,62]
[330582385,1719585878161,150.5,0.00016233,62]
[330582386,1719585878667,150.5,0.00016223,62]
[330582388,1719585915823,499.9888163,0.00013887,2]
[330582389,1719585935880,3000.0,0.00013887,2]
[330582390,1719585954135,282.99049332,9.999e-05,2]
[330582391,1719585962938,771.6065735,0.00013922,2]
[330582392,1719585991794,150.5,0.00016243,62]
[330582393,1719585992261,150.5,0.00016233,62]
[330582394,1719585992731,150.5,0.00016223,62]
[330582395,1719585999336,309.56353887,9.999e-05,2]
[330582398,1719586024973,203.30555913,9.999e-05,2]
[330582409,1719586113438,183.49,0.00016243,62]
[330582411,1719586118958,155.19231493,9.999e-05,2]
[330582415,1719586191681,-300.0,0.00014793,2]
[330582416,1719586191718,-300.0,0.00014793,2]
[330582417,1719586191749,-78.04922059,0.00014794,2]
[330582418,1719586191802,-678.04922059,0.00014794,2]
[330582419,1719586191861,-216.76728686,0.00014794,2]
[330582420,1719586210126,24900.0,0.00013973,2]
[330582464,1719586232855,-6654.93654929,0.00014693,2]
[330582466,1719586232868,-300.0,0.00014793,2]
[330582467,1719586232879,-595.86518887,0.00014794,2]
[330582469,1719586232889,-1433.52239716,0.00014794,2]
[330582471,1719586232899,-2124.49069545,0.00014794,2]
[330582473,1719586232909,-1876.24282826,0.00014794,2]
[330582475,1719586232920,-590.98548964,0.00014794,2]
[330582480,1719586233072,-545.87563572,0.00014794,2]
[330582482,1719586233085,-23.80027002,0.00014794,2]
[330582483,1719586233094,-304.92828822,0.00014897,2]
[330582484,1719586233105,-864.28174338,0.00014897,2]
[330582485,1719586233114,-1000.0,0.00014997,2]
[330582486,1719586233124,-6875.11334424,0.00014998,2]
[330582492,1719586238765,-260.07315548,0.00014794,2]
[330582493,1719586238775,-97.66832086,0.00014998,2]
[330582494,1719586238784,-1644.94644365,0.00014998,2]
[330582518,1719586242879,-15584.29521371,0.00014998,2]
[330582519,1719586242889,-2578.98618486,0.00014999,2]
[330582520,1719586242900,-3922.04117097,0.00014999,2]
[330582521,1719586242912,-1914.55138167,0.00014999,2]
[330582522,1719586242922,-2191.19654884,0.00014999,2]
[330582523,1719586242933,-412.23440161,0.00014999,2]
[330582524,1719586242943,-1102.94117698,0.00015,2]
[330582526,1719586242953,-154.99577588,0.00015,2]
[330582528,1719586242962,-947.59886703,0.00015,2]
[330582530,1719586242974,-2279.65674304,0.00015,2]
[330582532,1719586242986,-490.54850109,0.00015995,2]
[330582534,1719586242996,-225.55668027,0.00016,2]
[330582536,1719586243006,-14523.00982716,0.00016155,2]
[330582538,1719586243015,-35453.80960142,0.00016253,2]
[330582540,1719586243027,-610.0,0.00016253,2]
[330582543,1719586243039,-7370.91453283,0.00016253,2]
[330582666,1719586247047,-412.23440161,0.00014794,2]
[330582668,1719586247057,-196.46559839,0.00016253,2]
[330582670,1719586247078,-1398.57585099,0.00016253,2]
[330582679,1719586302793,-412.23440161,0.00014794,2]
[330582680,1719586302816,-1346.843404,0.00015344,2]
[330582681,1719586302839,-300.0,0.00016252,2]
[330582682,1719586302863,-300.0,0.00016252,2]
[330582683,1719586302883,-263516.62874038,0.00016253,2]
[330582684,1719586302904,-11335.05623968,0.00016255,2]
[330582685,1719586302929,-22789.23721433,0.00016255,2]
[330582686,1719586305352,412.23440161,9.999e-05,2]
[330582689,1719586384132,4423.11508975,9.999e-05,2]
[330582690,1719586393050,7393.16959714,9.999e-05,2]
[330582691,1719586403521,3767.28917554,9.999e-05,2]
[330582692,1719586416006,878.11857354,9.999e-05,2]
[330582693,1719586421930,2099.6884772,9.999e-05,2]
[330582694,1719586427017,661.12832609,9.999e-05,2]
[330582695,1719586433695,1117.74863961,9.999e-05,2]
[330582696,1719586449367,597.70730701,9.999e-05,2]
[330582697,1719586462448,205.02085854,0.0001212,2]
[330582698,1719586462664,661.12832609,0.0001212,2]
[330582699,1719586464777,933.59102466,9.999e-05,2]
[330582700,1719586468378,-3000.0,0.00014377,2]
[330582701,1719586468400,-301.49906022,0.00014794,2]
[330582702,1719586468435,-154.96125969,0.00014794,2]
[330582703,1719586468461,-159.70589002,0.00014794,2]
[330582704,1719586468484,-179.54081427,0.00014794,2]
[330582705,1719586468506,-155.06906395,0.00014794,2]
[330582706,1719586468531,-402.64531294,0.00014794,2]
[330582707,1719586468552,-164.81209326,0.00014794,2]
[330582708,1719586468574,-156.32048258,0.00014794,2]
[330582709,1719586468596,-155.13744224,0.00014794,2]
[330582710,1719586468623,-282.99049332,0.00014794,2]
[330582711,1719586468650,-457.45943987,0.00014794,2]
[330582712,1719586468674,-300.0,0.00014898,2]
[330582713,1719586468696,-300.0,0.00014898,2]
[330582714,1719586468719,-9222.08855519,0.00014899,2]
[330582715,1719586468744,-591.00189098,0.000149,2]
[330582716,1719586468768,-1433.52239716,0.00014999,2]
[330582717,1719586468791,-1914.55138167,0.00014999,2]
[330582718,1719586468812,-2115.78838011,0.00014999,2]
[330582719,1719586468835,-1487.2316115,0.00014999,2]
[330582720,1719586468857,-1793.75251384,0.00014999,2]
[330582721,1719586468878,-154.95218293,0.00014999,2]
[330582722,1719586468901,-194.1101576,0.00014999,2]
[330582723,1719586468924,-1218.76273557,0.00014999,2]
[330582724,1719586468954,-2825.49865465,0.00015,2]
[330582725,1719586468985,-244.01101863,0.00015,2]
[330582726,1719586469009,-250.0,0.00015591,2]
[330582727,1719586469031,-490.54850109,0.00015995,2]
[330582728,1719586480679,155.24767274,0.00014999,2]
[330582729,1719586484437,6976.32251601,0.00014998,2]
[330582730,1719586496941,3924.67012836,0.00014999,2]
[330582731,1719586501340,936.24213283,0.0001212,2]
[330582732,1719586512870,2124.49069545,0.00014999,2]
[330582733,1719586514385,1433.52239716,0.0001212,2]
[330582734,1719586516787,501.30485567,0.0001212,2]
[330582735,1719586520902,490.28883306,0.000156,2]
[330582736,1719586524647,282.99049332,0.0001212,2]
[330582737,1719586539948,1745.76536155,0.00014999,2]
[330582738,1719586541183,1323.19358057,0.00014999,2]
[330582739,1719586579176,1583.84169248,9.999e-05,2]
[330582740,1719586612430,566.05938198,9.999e-05,2]
[330582741,1719586652932,565.7580428,0.0001212,2]
[330582742,1719586687272,500.27637021,9.999e-05,2]
[330582743,1719586692904,648.50289162,9.999e-05,2]
[330582744,1719586723398,412.23440161,9.999e-05,2]
[330582745,1719586746152,282.99049332,9.999e-05,2]
[330582746,1719586772671,155.24767274,9.999e-05,2]
[330582747,1719586781987,208.37564863,9.999e-05,2]
[330582748,1719586783383,412.23440161,0.0001212,2]
[330582749,1719586790792,933.59102466,9.999e-05,2]
[330582750,1719586801661,259.9644909,0.0001212,2]
[330582751,1719586805493,200.72580001,9.999e-05,2]
[330582752,1719586806033,154.91116123,9.999e-05,2]
[330582754,1719586814173,161.49054062,9.999e-05,2]
[330582755,1719586818021,661.12832609,9.999e-05,2]
[330582756,1719586836637,-935.99811223,0.00014691,2]
[330582757,1719586836661,-412.23440161,0.00014691,2]
[330582758,1719586836686,-300.0,0.00014793,2]
[330582759,1719586836709,-300.0,0.00014793,2]
[330582760,1719586836732,-3924.67012836,0.00014794,2]
[330582761,1719586836755,-2124.49069545,0.00014794,2]
[330582762,1719586836779,-10567.57377167,0.00014998,2]
[330582763,1719586836803,-3295.01354469,0.00014999,2]
[330582764,1719586836825,-1914.02350809,0.00014999,2]
[330582765,1719586836849,-1103.47973038,0.00015,2]
[330582766,1719586836871,-420.0,0.00016193,2]
[330582767,1719586852154,-19412.52341911,0.00016255,2]
[330582768,1719586852176,-5289.99268841,0.00016255,2]
[330582769,1719587173943,412.23440161,9.999e-05,2]
[330582771,1719587234424,212.84271403,0.0001212,2]
[330582772,1719587294978,-300.0,0.00014997,2]
[330582773,1719587295012,-300.0,0.00014997,2]
[330582774,1719587295047,-79.27892873,0.00014998,2]
[330582775,1719587295086,-679.27892873,0.00014998,2]
[330582776,1719587295125,-243.31507852,0.00014998,2]
[330582777,1719587319490,-711.31638745,0.00014998,2]
[330582778,1719587319542,-305.07649061,0.00014998,2]
[330582779,1719587319600,-711.31638745,0.00014998,2]
[330582780,1719587344482,-745.87057276,0.00014998,2]
[330582781,1719587345488,-745.87057276,0.00014998,2]
[330582783,1719587369509,-775.70539567,0.00014998,2]
[330582784,1719587369558,-658.72833308,0.00014998,2]
[330582785,1719587394535,-804.39407024,0.00014998,2]
[330582786,1719587394579,-516.17137001,0.00014998,2]
[330582787,1719587394611,-288.22270023,0.00014999,2]
[330582788,1719587394651,-171.31347864,0.00014999,2]
[330582831,1719587433725,-24900.0,0.00014815,2]
[330582834,1719587433734,-200.68000754,0.00014999,2]
[330582837,1719587433743,-913.72154788,0.00015,2]
[330582883,1719587439637,-189.7581825,0.00015,2]
[330582884,1719587439647,-3000.0,0.00015344,2]
[330582885,1719587439657,-250.0,0.00015744,2]
[330582886,1719587439667,-300.0,0.00015948,2]
[330582887,1719587439677,-300.0,0.00015948,2]
[330582889,1719587439687,-5283.67863355,0.00015949,2]
[330582891,1719587439698,-352.36113966,0.00016155,2]
[330582892,1719587439707,-1000.0,0.00016254,2]
[330582893,1719587439718,-20779.57806301,0.00016255,2]
[330582894,1719587439728,-309.6439095,0.00016255,2]
[330582895,1719587439738,-154.85288975,0.00016255,2]
[330582896,1719587439749,-27500.61040923,0.00016255,2]
[330582897,1719587439761,-2576.10699178,0.00016255,2]
[330582898,1719587439774,-8472.95239,0.00016255,2]
[330582906,1719587441140,-3652.09084243,0.00016255,2]
[330582907,1719587441150,-4244.36561228,0.00016255,2]
[330582908,1719587441159,-276.23399711,0.000165,2]
[330582909,1719587441168,-352.36113963,0.00016886,2]
[330582910,1719587441177,-155.0,0.0001724,2]
[330582911,1719587441186,-673.421702,0.00017356,2]
[330582912,1719587441195,-420.0,0.00017437,2]
[330582913,1719587441204,-420.0,0.00017543,2]
[330582914,1719587441213,-352.36113963,0.00017617,2]
[330582915,1719587441222,-1000.0,0.00017624,2]
[330582916,1719587441232,-1000.0,0.00018,4]
[330582917,1719587441240,-155.0,0.0001824,2]
[330582918,1719587441249,-352.36113963,0.00018347,2]
[330582919,1719587441258,-455.9835987,0.00018356,2]
[330582920,1719587441269,-205.8950775,0.00018356,2]
[330582921,1719587441281,-153.0,0.00018356,2]
[330582922,1719587441290,-200.376697,0.00018356,2]
[330582923,1719587441299,-620.60848637,0.00018631,2]
[330582924,1719587441308,-150.0,0.000189,2]
[330582925,1719587441318,-368.51221529,0.000189,2]
[330582927,1719587441565,-28242.91450726,0.000189,2]
[330582928,1719587441577,-30080.60974995,0.000189,2]
[330582929,1719587441586,-4100.0,0.00018978,2]
[330582930,1719587441595,-4100.0,0.00018978,2]
[330582931,1719587441605,-178.87818299,0.00018978,2]
[330582932,1719587441616,-1000.0,0.00018994,2]
[330582933,1719587441626,-1500.0,0.00019,2]
[330582934,1719587441635,-773.29998347,0.00019,3]
[330582935,1719587441644,-1000.0,0.00019,4]
[330582936,1719587441653,-587.0,0.00019066,2]
[330582937,1719587441663,-2000.0,0.00019068,2]
[330582938,1719587441672,-352.36113963,0.00019078,2]
[330582939,1719587441682,-80138.90697105,0.00019168,2]
[330582950,1719587444981,-8306.24061548,0.00019168,2]
[330582951,1719587444995,-869.94591213,0.00019168,2]
[330582952,1719587445006,-330.29329238,0.00019168,2]
[330582953,1719587445017,-2010.36178506,0.00019168,2]
[330582954,1719587445028,-1610.0,0.00019168,2]
[330582955,1719587445039,-623.47803253,0.00019168,2]
[330582979,1719587447668,-43994.38575714,0.00019168,2]
[330582980,1719587447707,-466.16787958,0.00019168,2]
[330582981,1719587447719,-3432.221853,0.00019168,2]
[330583004,1719587799309,1054.80137383,9.999e-05,2]
[330583012,1719587933381,154.85288975,0.0001212,2]
[330583013,1719587934039,565.90871239,0.0001212,2]
[330583014,1719587946288,282.93616103,0.0001212,2]
[330583028,1719588055849,158.3776396,9.999e-05,2]
[330583030,1719588070774,268.17032126,9.999e-05,7]
[330583043,1719588152604,268.17032126,9.999e-05,7]
[330583044,1719588189117,269.32692359,0.0001212,7]
[330583050,1719588488762,155.63,0.00010959,2]
[330583051,1719588518715,5772.00211607,0.00013283,2]
[330583052,1719588544208,1041.54104228,0.00013283,2]
[330583053,1719588545082,565.90871239,0.00013283,2]
[330583054,1719588553796,256.99308137,0.00013283,2]
[330583055,1719588553828,525.65222202,0.00013283,2]
[330583056,1719588576654,9603.09362546,0.00013283,2]
[330583057,1719588603557,-151.11175224,0.00014525,2]
[330583058,1719588603590,-600.60115948,0.00014625,2]
[330583059,1719588603632,-751.71291172,0.00014625,2]
[330583074,1719588632103,2060.7318366,0.00013849,2]
[330583199,1719588638400,-1647.6859288,0.00014625,2]